[Event "*** SCC Grand Prix: Titled Tuesday Blitz"]
[Site "Chess.com"]
[Date "2020.07.07"]
[Round "1"]
[White "plumalka"]
[Black "DenLaz"]
[Result "1-0"]
[WhiteElo "2396"]
[BlackElo "2691"]
[TimeControl "180+1"]
[EndTime "10:07:06 PDT"]
[Termination "plumalka won on time"]

1. e4 {[%clk 0:03:00.9]} 1... e5 {[%clk 0:02:59]} 2. Nf3 {[%clk 0:03:00.3]} 2...
Nc6 {[%clk 0:02:58.9]} 3. Nc3 {[%clk 0:03:00.1]} 3... Nf6 {[%clk 0:02:57.5]} 4.
a3 {[%clk 0:03:00.1]} 4... d5 {[%clk 0:02:55.9]} 5. Bb5 {[%clk 0:02:59.4]} 5...
d4 {[%clk 0:02:56.3]} 6. Ne2 {[%clk 0:02:59.3]} 6... Bd6 {[%clk 0:02:56.4]} 7.
Bxc6+ {[%clk 0:02:56.7]} 7... bxc6 {[%clk 0:02:55.4]} 8. d3 {[%clk 0:02:57.6]}
8... c5 {[%clk 0:02:49.9]} 9. O-O {[%clk 0:02:57.2]} 9... O-O {[%clk 0:02:47.1]}
10. c3 {[%clk 0:02:57.1]} 10... h6 {[%clk 0:02:42.1]} 11. Qc2 {[%clk 0:02:52.7]}
11... Be6 {[%clk 0:02:36.6]} 12. b4 {[%clk 0:02:47]} 12... Bg4 {[%clk
0:01:56.8]} 13. bxc5 {[%clk 0:02:38.9]} 13... Bxf3 {[%clk 0:01:55.7]} 14. cxd6
{[%clk 0:02:35.7]} 14... Bxe2 {[%clk 0:01:54.7]} 15. Qxe2 {[%clk 0:02:31.5]}
15... dxc3 {[%clk 0:01:48.5]} 16. dxc7 {[%clk 0:02:31.4]} 16... Qxc7 {[%clk
0:01:49.4]} 17. f4 {[%clk 0:02:31.5]} 17... Rad8 {[%clk 0:01:44.6]} 18. fxe5
{[%clk 0:02:30.1]} 18... Qxe5 {[%clk 0:01:43.3]} 19. Be3 {[%clk 0:02:26.5]}
19... Rd7 {[%clk 0:01:27]} 20. Rf5 {[%clk 0:02:26]} 20... Qe6 {[%clk 0:01:25.8]}
21. Raf1 {[%clk 0:02:25.2]} 21... Nh7 {[%clk 0:01:04.2]} 22. Bc5 {[%clk
0:02:14.9]} 22... Re8 {[%clk 0:00:57.7]} 23. Qc2 {[%clk 0:02:09.1]} 23... Qa6
{[%clk 0:00:51.3]} 24. d4 {[%clk 0:02:06.6]} 24... Ng5 {[%clk 0:00:40.8]} 25. e5
{[%clk 0:02:01.6]} 25... Qc4 {[%clk 0:00:32.4]} 26. Rc1 {[%clk 0:01:51.5]} 26...
Ne6 {[%clk 0:00:19.5]} 27. Qxc3 {[%clk 0:01:50.9]} 27... Qd5 {[%clk 0:00:19.9]}
28. Rcf1 {[%clk 0:01:44.7]} 28... Rb7 {[%clk 0:00:19.4]} 29. Qg3 {[%clk
0:01:40.7]} 29... Nxc5 {[%clk 0:00:17.3]} 30. dxc5 {[%clk 0:01:38.4]} 30...
Qxc5+ {[%clk 0:00:18.2]} 31. Kh1 {[%clk 0:01:39]} 31... Qc4 {[%clk 0:00:17]} 32.
h3 {[%clk 0:01:36.8]} 32... Rf8 {[%clk 0:00:12.1]} 33. R5f4 {[%clk 0:01:36.6]}
33... Qd5 {[%clk 0:00:10.3]} 34. Rg4 {[%clk 0:01:36.6]} 34... g6 {[%clk
0:00:08.7]} 35. Rf6 {[%clk 0:01:32.5]} 35... Qd2 {[%clk 0:00:03.6]} 36. e6
{[%clk 0:01:26.1]} 36... Qc1+ {[%clk 0:00:03.4]} 37. Kh2 {[%clk 0:01:25.6]}
37... Qc7 {[%clk 0:00:03.9]} 38. Rgf4 {[%clk 0:01:23.8]} 38... Kg7 {[%clk
0:00:02.8]} 39. exf7 {[%clk 0:01:23.6]} 39... g5 {[%clk 0:00:02.6]} 40. h4
{[%clk 0:01:17.8]} 40... Qb8 {[%clk 0:00:02]} 41. hxg5 {[%clk 0:01:17.4]} 41...
h5 {[%clk 0:00:02.9]} 42. Qc3 {[%clk 0:01:12.1]} 42... Kh7 {[%clk 0:00:01.3]}
43. g6+ {[%clk 0:01:11.4]} 43... Kh6 {[%clk 0:00:02.2]} 44. Qe3 {[%clk
0:01:10.1]} 44... Kg7 {[%clk 0:00:02.4]} 45. Rf5 {[%clk 0:01:06.6]} 45... Rb3
{[%clk 0:00:02]} 46. Qd4+ {[%clk 0:01:06.4]} 46... Kh6 {[%clk 0:00:02.3]} 47.
Qf6 {[%clk 0:01:01.4]} 47... Qb5 {[%clk 0:00:01.2]} 48. Rxb5 {[%clk 0:01:00.6]}
1-0

[Event "*** SCC Grand Prix: Titled Tuesday Blitz"]
[Site "Chess.com"]
[Date "2020.07.07"]
[Round "1"]
[White "WanderingPuppet"]
[Black "Firouzja2003"]
[Result "0-1"]
[WhiteElo "2465"]
[BlackElo "3109"]
[TimeControl "180+1"]
[EndTime "10:07:07 PDT"]
[Termination "Firouzja2003 won on time"]

1. e4 {[%clk 0:02:57.9]} 1... c5 {[%clk 0:02:57.3]} 2. Nf3 {[%clk 0:02:57.4]}
2... d6 {[%clk 0:02:57.1]} 3. d4 {[%clk 0:02:57.1]} 3... cxd4 {[%clk 0:02:58]}
4. Nxd4 {[%clk 0:02:57.5]} 4... Nf6 {[%clk 0:02:58.6]} 5. Nc3 {[%clk 0:02:57]}
5... a6 {[%clk 0:02:58.9]} 6. Be3 {[%clk 0:02:55.8]} 6... e6 {[%clk 0:02:58.6]}
7. f3 {[%clk 0:02:55]} 7... Be7 {[%clk 0:02:58.3]} 8. g4 {[%clk 0:02:53.8]} 8...
b5 {[%clk 0:02:56.9]} 9. g5 {[%clk 0:02:51.5]} 9... Nfd7 {[%clk 0:02:56.8]} 10.
Qd2 {[%clk 0:02:50.8]} 10... Bb7 {[%clk 0:02:54.4]} 11. h4 {[%clk 0:02:48.4]}
11... b4 {[%clk 0:02:53.6]} 12. Nce2 {[%clk 0:02:36.6]} 12... Qc7 {[%clk
0:02:50.8]} 13. h5 {[%clk 0:02:31.7]} 13... Ne5 {[%clk 0:02:30.4]} 14. b3 {[%clk
0:02:29.9]} 14... Nbc6 {[%clk 0:02:23.8]} 15. Rg1 {[%clk 0:02:18.8]} 15... d5
{[%clk 0:01:49]} 16. f4 {[%clk 0:02:07.8]} 16... Nxd4 {[%clk 0:01:48.9]} 17.
Nxd4 {[%clk 0:02:06.5]} 17... Nd7 {[%clk 0:01:49.6]} 18. e5 {[%clk 0:01:50.8]}
18... Nc5 {[%clk 0:01:43.3]} 19. Bd3 {[%clk 0:01:43]} 19... g6 {[%clk
0:01:21.4]} 20. Rh1 {[%clk 0:01:36.2]} 20... Kd7 {[%clk 0:01:20.8]} 21. Kf2
{[%clk 0:01:27.4]} 21... a5 {[%clk 0:01:17]} 22. Bb5+ {[%clk 0:01:15.1]} 22...
Kc8 {[%clk 0:01:16.9]} 23. Bd3 {[%clk 0:01:14.4]} 23... Rf8 {[%clk 0:00:55.5]}
24. Kg3 {[%clk 0:01:02.7]} 24... Ba6 {[%clk 0:00:55.1]} 25. hxg6 {[%clk
0:00:57.2]} 25... hxg6 {[%clk 0:00:55]} 26. Rh7 {[%clk 0:00:52.6]} 26... Kb7
{[%clk 0:00:48.9]} 27. Rah1 {[%clk 0:00:46.9]} 27... Nxd3 {[%clk 0:00:34.6]} 28.
cxd3 {[%clk 0:00:45.8]} 28... Rac8 {[%clk 0:00:34.7]} 29. Rg7 {[%clk 0:00:23.2]}
29... Qd7 {[%clk 0:00:34]} 30. Rhh7 {[%clk 0:00:21.3]} 30... Bc5 {[%clk
0:00:32.1]} 31. Qf2 {[%clk 0:00:05.9]} 31... Bxd3 {[%clk 0:00:23]} 32. Nf3
{[%clk 0:00:02.2]} 32... Bxe3 {[%clk 0:00:20.4]} 33. Qxe3 {[%clk 0:00:03.1]}
33... Be4 {[%clk 0:00:20.1]} 0-1

[Event "*** SCC Grand Prix: Titled Tuesday Blitz"]
[Site "Chess.com"]
[Date "2020.07.07"]
[Round "1"]
[White "Tekushka"]
[Black "Chess_Boxer123"]
[Result "0-1"]
[WhiteElo "2362"]
[BlackElo "2678"]
[TimeControl "180+1"]
[EndTime "10:07:10 PDT"]
[Termination "Chess_Boxer123 won on time"]

1. d4 {[%clk 0:03:00.9]} 1... d5 {[%clk 0:02:59.5]} 2. c4 {[%clk 0:03:00.6]}
2... c6 {[%clk 0:02:59.3]} 3. Nf3 {[%clk 0:02:59.9]} 3... Nf6 {[%clk 0:02:58.1]}
4. e3 {[%clk 0:03:00.1]} 4... e6 {[%clk 0:02:58.1]} 5. b3 {[%clk 0:02:59.4]}
5... Ne4 {[%clk 0:02:57]} 6. Nbd2 {[%clk 0:02:47.1]} 6... f5 {[%clk 0:02:55.6]}
7. Bb2 {[%clk 0:02:40.6]} 7... Nd7 {[%clk 0:02:50.3]} 8. Be2 {[%clk 0:02:35.8]}
8... Bd6 {[%clk 0:02:49.8]} 9. O-O {[%clk 0:02:23.9]} 9... Qf6 {[%clk
0:02:49.5]} 10. Rc1 {[%clk 0:01:58.8]} 10... g5 {[%clk 0:02:37.1]} 11. Ne1
{[%clk 0:01:30.2]} 11... Qh6 {[%clk 0:02:25.6]} 12. g3 {[%clk 0:01:26.6]} 12...
Ndf6 {[%clk 0:02:25.5]} 13. Nd3 {[%clk 0:01:16.4]} 13... Nxd2 {[%clk 0:02:09.2]}
14. Qxd2 {[%clk 0:01:16]} 14... Ne4 {[%clk 0:02:09.7]} 15. Qe1 {[%clk
0:01:11.5]} 15... g4 {[%clk 0:02:09]} 16. Ne5 {[%clk 0:01:07.1]} 16... Bxe5
{[%clk 0:01:48.5]} 17. dxe5 {[%clk 0:01:06.5]} 17... Bd7 {[%clk 0:01:43.6]} 18.
Bd3 {[%clk 0:00:58.4]} 18... Ng5 {[%clk 0:01:37.1]} 19. Be2 {[%clk 0:00:54.2]}
19... Qh3 {[%clk 0:01:35.4]} 20. f4 {[%clk 0:00:49.1]} 20... Ne4 {[%clk
0:01:22]} 21. Bd3 {[%clk 0:00:44.9]} 21... Nc5 {[%clk 0:01:18.1]} 22. Bc2 {[%clk
0:00:41.6]} 22... h5 {[%clk 0:01:12.8]} 23. Qf2 {[%clk 0:00:31]} 23... O-O-O
{[%clk 0:00:40.9]} 24. Qg2 {[%clk 0:00:29.9]} 24... h4 {[%clk 0:00:37]} 25. Qxh3
{[%clk 0:00:18.6]} 25... gxh3 {[%clk 0:00:37.9]} 26. Bd4 {[%clk 0:00:18.5]}
26... Ne4 {[%clk 0:00:24]} 27. Bxe4 {[%clk 0:00:17.9]} 27... dxe4 {[%clk
0:00:24.6]} 28. Bxa7 {[%clk 0:00:16]} 28... Be8 {[%clk 0:00:20.6]} 29. Kf2
{[%clk 0:00:15.6]} 29... hxg3+ {[%clk 0:00:18.7]} 30. hxg3 {[%clk 0:00:12.5]}
30... Bh5 {[%clk 0:00:17.6]} 31. Rc2 {[%clk 0:00:11.4]} 31... h2 {[%clk
0:00:15.3]} 32. Rh1 {[%clk 0:00:07.3]} 32... Bf3 {[%clk 0:00:15.2]} 0-1

[Event "*** SCC Grand Prix: Titled Tuesday Blitz"]
[Site "Chess.com"]
[Date "2020.07.07"]
[Round "1"]
[White "amintabatabaei"]
[Black "mbachez"]
[Result "1-0"]
[WhiteElo "2935"]
[BlackElo "2452"]
[TimeControl "180+1"]
[EndTime "10:07:11 PDT"]
[Termination "amintabatabaei won by resignation"]

1. e4 {[%clk 0:03:00.9]} 1... e6 {[%clk 0:02:58.7]} 2. d4 {[%clk 0:03:00.5]}
2... d5 {[%clk 0:02:58.5]} 3. Nc3 {[%clk 0:03:01]} 3... Bb4 {[%clk 0:02:56.2]}
4. e5 {[%clk 0:02:59.2]} 4... c5 {[%clk 0:02:56.3]} 5. a3 {[%clk 0:02:59.8]}
5... Bxc3+ {[%clk 0:02:56.2]} 6. bxc3 {[%clk 0:03:00.7]} 6... Nc6 {[%clk
0:02:56.4]} 7. Nf3 {[%clk 0:02:58.6]} 7... Qa5 {[%clk 0:02:56.1]} 8. Bd2 {[%clk
0:02:57.9]} 8... Qa4 {[%clk 0:02:56.2]} 9. Qb1 {[%clk 0:02:58.4]} 9... c4 {[%clk
0:02:55.9]} 10. h4 {[%clk 0:02:58.7]} 10... Nge7 {[%clk 0:02:45]} 11. h5 {[%clk
0:02:59]} 11... h6 {[%clk 0:02:45.2]} 12. g3 {[%clk 0:02:56.8]} 12... Bd7 {[%clk
0:02:45.2]} 13. Bh3 {[%clk 0:02:57.2]} 13... O-O-O {[%clk 0:02:45.1]} 14. O-O
{[%clk 0:02:57.7]} 14... Kb8 {[%clk 0:02:43.4]} 15. Nh4 {[%clk 0:02:58]} 15...
g5 {[%clk 0:02:38.5]} 16. Ng2 {[%clk 0:02:55.5]} 16... Qa5 {[%clk 0:02:31.6]}
17. Qd1 {[%clk 0:02:44]} 17... Ka8 {[%clk 0:02:28.1]} 18. Ne3 {[%clk 0:02:43.8]}
18... Rdf8 {[%clk 0:02:21.5]} 19. Ng4 {[%clk 0:02:44.1]} 19... Ng8 {[%clk
0:02:19]} 20. f4 {[%clk 0:02:37.2]} 20... gxf4 {[%clk 0:02:17.2]} 21. Rxf4
{[%clk 0:02:36.5]} 21... Nge7 {[%clk 0:02:16.8]} 22. Nf6 {[%clk 0:02:36]} 22...
Bc8 {[%clk 0:02:15.9]} 23. Kh2 {[%clk 0:02:36.1]} 23... Ng8 {[%clk 0:02:13]} 24.
Qe2 {[%clk 0:02:29.3]} 24... Nxf6 {[%clk 0:02:11.6]} 25. Rxf6 {[%clk 0:02:30.2]}
25... Qa4 {[%clk 0:02:02.4]} 26. Bxh6 {[%clk 0:02:27.8]} 26... Rfg8 {[%clk
0:02:01.4]} 27. g4 {[%clk 0:02:26.4]} 27... Qa5 {[%clk 0:01:47.7]} 28. Bd2
{[%clk 0:02:23.4]} 28... Qc7 {[%clk 0:01:45.9]} 29. g5 {[%clk 0:02:15]} 29...
Rh7 {[%clk 0:01:41.4]} 30. h6 {[%clk 0:02:13.4]} 30... Ne7 {[%clk 0:01:40.4]}
31. Raf1 {[%clk 0:02:12.7]} 31... Nf5 {[%clk 0:01:34.1]} 32. Bxf5 {[%clk
0:02:13]} 32... exf5 {[%clk 0:01:34]} 33. Bf4 {[%clk 0:02:11.5]} 33... Be6
{[%clk 0:01:33.3]} 34. Rg1 {[%clk 0:02:03.7]} 34... Rg6 {[%clk 0:01:32.8]} 35.
Qd2 {[%clk 0:01:52.9]} 35... Qe7 {[%clk 0:01:24.8]} 36. Rxg6 {[%clk 0:01:50.8]}
36... fxg6 {[%clk 0:01:24.4]} 37. Qc1 {[%clk 0:01:51.7]} 37... Bd7 {[%clk
0:01:11.7]} 38. Qb2 {[%clk 0:01:51.2]} 38... Rxh6+ {[%clk 0:01:00.9]} 39. Kg3
{[%clk 0:01:41.4]} 39... Rh5 {[%clk 0:00:59.2]} 40. Rb1 {[%clk 0:01:30.5]} 40...
Bc6 {[%clk 0:00:56.7]} 41. Qb4 {[%clk 0:01:30]} 41... Qe8 {[%clk 0:00:51.8]} 42.
Qd6 {[%clk 0:01:26.4]} 42... Qh8 {[%clk 0:00:43]} 43. e6 {[%clk 0:01:22]} 43...
Rh4 {[%clk 0:00:28.1]} 44. Kf3 {[%clk 0:00:55.5]} 44... Rg4 {[%clk 0:00:23.7]}
45. Bg3 {[%clk 0:00:49.1]} 45... a6 {[%clk 0:00:18.6]} 46. e7 {[%clk 0:00:49.4]}
46... Re4 {[%clk 0:00:18.2]} 47. Qd8+ {[%clk 0:00:46.6]} 1-0

[Event "*** SCC Grand Prix: Titled Tuesday Blitz"]
[Site "Chess.com"]
[Date "2020.07.07"]
[Round "1"]
[White "jaskol95"]
[Black "frederiksvane"]
[Result "1-0"]
[WhiteElo "2385"]
[BlackElo "2672"]
[TimeControl "180+1"]
[EndTime "10:07:11 PDT"]
[Termination "jaskol95 won on time"]

1. d4 {[%clk 0:03:00.9]} 1... Nf6 {[%clk 0:03:00.2]} 2. c4 {[%clk 0:02:56]} 2...
e6 {[%clk 0:03:00.5]} 3. Nf3 {[%clk 0:02:55.2]} 3... b6 {[%clk 0:02:54.6]} 4. g3
{[%clk 0:02:52.3]} 4... Bb4+ {[%clk 0:02:54.4]} 5. Bd2 {[%clk 0:02:50.2]} 5...
Be7 {[%clk 0:02:54.5]} 6. Bg2 {[%clk 0:02:49.6]} 6... c6 {[%clk 0:02:55.2]} 7.
Nc3 {[%clk 0:02:48.6]} 7... d5 {[%clk 0:02:55.4]} 8. O-O {[%clk 0:02:42.2]} 8...
O-O {[%clk 0:02:55.2]} 9. cxd5 {[%clk 0:02:41.4]} 9... cxd5 {[%clk 0:02:54.2]}
10. Rc1 {[%clk 0:02:41.4]} 10... Bb7 {[%clk 0:02:49.7]} 11. Bg5 {[%clk
0:02:31.6]} 11... h6 {[%clk 0:02:41.2]} 12. Bxf6 {[%clk 0:02:31.3]} 12... Bxf6
{[%clk 0:02:42.1]} 13. e3 {[%clk 0:02:31.9]} 13... Nc6 {[%clk 0:02:39.1]} 14.
Re1 {[%clk 0:02:28.4]} 14... Rc8 {[%clk 0:02:38.1]} 15. a3 {[%clk 0:02:24.8]}
15... Na5 {[%clk 0:02:35.4]} 16. Nd2 {[%clk 0:02:25.3]} 16... Qd7 {[%clk
0:02:31.6]} 17. h3 {[%clk 0:02:04.8]} 17... Rc7 {[%clk 0:02:30.1]} 18. Na2
{[%clk 0:02:00.8]} 18... Rfc8 {[%clk 0:02:27.2]} 19. Rxc7 {[%clk 0:02:00.8]}
19... Qxc7 {[%clk 0:02:20.9]} 20. Qb1 {[%clk 0:01:59.4]} 20... Qc2 {[%clk
0:02:07.7]} 21. Rd1 {[%clk 0:01:46.6]} 21... Qxb1 {[%clk 0:01:42.4]} 22. Rxb1
{[%clk 0:01:26.9]} 22... Rc2 {[%clk 0:01:37.7]} 23. Nf3 {[%clk 0:01:20.7]} 23...
Nc4 {[%clk 0:01:32.8]} 24. Nc3 {[%clk 0:01:15.5]} 24... Rxb2 {[%clk 0:00:59.7]}
25. Rxb2 {[%clk 0:01:14.7]} 25... Nxb2 {[%clk 0:01:00.6]} 26. Nb5 {[%clk
0:01:11.8]} 26... a5 {[%clk 0:00:57.3]} 27. Ne5 {[%clk 0:01:09.4]} 27... Bxe5
{[%clk 0:00:39.2]} 28. dxe5 {[%clk 0:01:09.4]} 28... Nc4 {[%clk 0:00:39.8]} 29.
a4 {[%clk 0:00:56.6]} 29... Bc6 {[%clk 0:00:34.1]} 30. Nc3 {[%clk 0:00:47.4]}
30... Nb2 {[%clk 0:00:34.2]} 31. f4 {[%clk 0:00:40.1]} 31... Nxa4 {[%clk
0:00:32.9]} 32. Ne2 {[%clk 0:00:40.2]} 32... Bd7 {[%clk 0:00:20.5]} 33. Nd4
{[%clk 0:00:40.2]} 33... b5 {[%clk 0:00:19.8]} 34. Bf3 {[%clk 0:00:38.1]} 34...
b4 {[%clk 0:00:19.7]} 35. e4 {[%clk 0:00:38.2]} 35... dxe4 {[%clk 0:00:17.7]}
36. Bxe4 {[%clk 0:00:39.1]} 36... Nc3 {[%clk 0:00:17.7]} 37. Bd3 {[%clk
0:00:37.8]} 37... a4 {[%clk 0:00:17.1]} 38. f5 {[%clk 0:00:38]} 38... exf5
{[%clk 0:00:14.4]} 39. Nxf5 {[%clk 0:00:36.4]} 39... Bxf5 {[%clk 0:00:14]} 40.
Bxf5 {[%clk 0:00:35.7]} 1-0

[Event "*** SCC Grand Prix: Titled Tuesday Blitz"]
[Site "Chess.com"]
[Date "2020.07.07"]
[Round "1"]
[White "aleksandrovaleksei"]
[Black "Ave_Mariia"]
[Result "1-0"]
[WhiteElo "2657"]
[BlackElo "2332"]
[TimeControl "180+1"]
[EndTime "10:07:11 PDT"]
[Termination "aleksandrovaleksei won by resignation"]

1. d4 {[%clk 0:03:00.9]} 1... Nf6 {[%clk 0:02:58.2]} 2. c4 {[%clk 0:03:00.4]}
2... e6 {[%clk 0:02:58.7]} 3. Nc3 {[%clk 0:03:00.7]} 3... Bb4 {[%clk 0:02:58.5]}
4. e3 {[%clk 0:03:00.9]} 4... O-O {[%clk 0:02:58.1]} 5. Bd3 {[%clk 0:03:01]}
5... d5 {[%clk 0:02:56.7]} 6. cxd5 {[%clk 0:03:00]} 6... exd5 {[%clk 0:02:54.9]}
7. Ne2 {[%clk 0:03:00.6]} 7... c6 {[%clk 0:02:33.8]} 8. O-O {[%clk 0:02:56.2]}
8... Re8 {[%clk 0:02:34.1]} 9. Bd2 {[%clk 0:02:56]} 9... Nbd7 {[%clk 0:02:32.2]}
10. f3 {[%clk 0:02:47.6]} 10... Nf8 {[%clk 0:02:26.2]} 11. Qe1 {[%clk
0:02:41.9]} 11... Ng6 {[%clk 0:02:02.4]} 12. Qf2 {[%clk 0:02:36.6]} 12... b6
{[%clk 0:01:41.1]} 13. Rad1 {[%clk 0:02:33.3]} 13... Qe7 {[%clk 0:01:33.9]} 14.
Kh1 {[%clk 0:02:24.3]} 14... Bd6 {[%clk 0:01:33.1]} 15. Ng3 {[%clk 0:02:09.6]}
15... c5 {[%clk 0:01:27.4]} 16. Nce2 {[%clk 0:01:46.7]} 16... c4 {[%clk
0:01:15]} 17. Nf5 {[%clk 0:01:35.7]} 17... Bxf5 {[%clk 0:01:10.7]} 18. Bxf5
{[%clk 0:01:36.6]} 18... b5 {[%clk 0:01:05.1]} 19. b3 {[%clk 0:01:21.1]} 19...
b4 {[%clk 0:01:01]} 20. bxc4 {[%clk 0:01:20.3]} 20... dxc4 {[%clk 0:01:01.9]}
21. e4 {[%clk 0:01:20.5]} 21... c3 {[%clk 0:01:02]} 22. Bc1 {[%clk 0:01:20.7]}
22... Bc7 {[%clk 0:00:44.2]} 23. e5 {[%clk 0:01:07.7]} 23... Nd5 {[%clk
0:00:43.8]} 24. Be4 {[%clk 0:01:06.1]} 24... Rad8 {[%clk 0:00:43]} 25. f4 {[%clk
0:01:06.2]} 25... f5 {[%clk 0:00:36.5]} 26. Bxf5 {[%clk 0:01:03.5]} 26... Nh4
{[%clk 0:00:31.4]} 27. Bc2 {[%clk 0:00:58.6]} 27... Rf8 {[%clk 0:00:31]} 28. g3
{[%clk 0:00:26.6]} 28... Nf5 {[%clk 0:00:30.9]} 29. g4 {[%clk 0:00:26.7]} 29...
Nh4 {[%clk 0:00:24]} 30. f5 {[%clk 0:00:26.5]} 30... h5 {[%clk 0:00:20.1]} 31.
f6 {[%clk 0:00:24.2]} 31... Qd7 {[%clk 0:00:07.7]} 32. Qxh4 {[%clk 0:00:23.2]}
32... Qc6 {[%clk 0:00:06.7]} 33. Be4 {[%clk 0:00:22.4]} 33... c2 {[%clk
0:00:06.4]} 34. Rde1 {[%clk 0:00:21.9]} 34... Qc4 {[%clk 0:00:04.3]} 35. Qxh5
{[%clk 0:00:21.2]} 35... Nc3 {[%clk 0:00:04]} 36. Bh7+ {[%clk 0:00:20.1]} 1-0

[Event "*** SCC Grand Prix: Titled Tuesday Blitz"]
[Site "Chess.com"]
[Date "2020.07.07"]
[Round "1"]
[White "Sven_Tica"]
[Black "MF1966Idrisov"]
[Result "1-0"]
[WhiteElo "2645"]
[BlackElo "2322"]
[TimeControl "180+1"]
[EndTime "10:07:14 PDT"]
[Termination "Sven_Tica won by resignation"]

1. d4 {[%clk 0:03:00.9]} 1... d6 {[%clk 0:02:58.4]} 2. Nf3 {[%clk 0:03:01.7]}
2... f5 {[%clk 0:02:58.4]} 3. g3 {[%clk 0:03:01.2]} 3... Nf6 {[%clk 0:02:58.3]}
4. Bg2 {[%clk 0:03:01.8]} 4... e6 {[%clk 0:02:58.3]} 5. O-O {[%clk 0:03:02.6]}
5... Be7 {[%clk 0:02:58.3]} 6. c4 {[%clk 0:03:01.8]} 6... O-O {[%clk 0:02:58]}
7. Nc3 {[%clk 0:03:02.7]} 7... Ne4 {[%clk 0:02:58]} 8. Nxe4 {[%clk 0:03:00.9]}
8... fxe4 {[%clk 0:02:57.5]} 9. Nd2 {[%clk 0:03:01.4]} 9... d5 {[%clk
0:02:57.6]} 10. f3 {[%clk 0:02:59.7]} 10... Nc6 {[%clk 0:02:56.9]} 11. e3 {[%clk
0:02:58.2]} 11... exf3 {[%clk 0:02:54.6]} 12. Nxf3 {[%clk 0:02:52.1]} 12... Bd7
{[%clk 0:02:52.2]} 13. cxd5 {[%clk 0:02:46.9]} 13... exd5 {[%clk 0:02:51]} 14.
Qb3 {[%clk 0:02:47.5]} 14... Be6 {[%clk 0:02:27.8]} 15. Qxb7 {[%clk 0:02:46.3]}
15... Qd7 {[%clk 0:02:27.7]} 16. a3 {[%clk 0:02:39.5]} 16... a5 {[%clk
0:02:18.2]} 17. Qb5 {[%clk 0:02:35.9]} 17... Rab8 {[%clk 0:02:12.4]} 18. Qe2
{[%clk 0:02:30.3]} 18... Bg4 {[%clk 0:02:09.7]} 19. Qc2 {[%clk 0:02:23]} 19...
Bf5 {[%clk 0:02:06.8]} 20. Qc3 {[%clk 0:02:22]} 20... Be4 {[%clk 0:02:06.7]} 21.
Bd2 {[%clk 0:02:20]} 21... a4 {[%clk 0:02:04.6]} 22. Rac1 {[%clk 0:02:13.7]}
22... Rb6 {[%clk 0:02:02.2]} 23. Rf2 {[%clk 0:02:08.5]} 23... Bd6 {[%clk
0:02:01.3]} 24. Rcf1 {[%clk 0:02:07.8]} 24... Rfb8 {[%clk 0:01:57.7]} 25. Bc1
{[%clk 0:02:01.4]} 25... Rb3 {[%clk 0:01:57]} 26. Qe1 {[%clk 0:02:00.4]} 26...
Ne7 {[%clk 0:01:47.3]} 27. Nd2 {[%clk 0:01:59.5]} 27... Bxg2 {[%clk 0:01:44.3]}
28. Kxg2 {[%clk 0:01:59.3]} 28... R3b5 {[%clk 0:01:40.3]} 29. Nb1 {[%clk
0:01:58.9]} 29... Ng6 {[%clk 0:01:35.5]} 30. Nc3 {[%clk 0:01:58.9]} 30... Rb3
{[%clk 0:01:34.3]} 31. Nxd5 {[%clk 0:01:54.4]} 31... Bxg3 {[%clk 0:01:24]} 32.
hxg3 {[%clk 0:01:28.4]} 32... Qxd5+ {[%clk 0:01:22.9]} 33. Kg1 {[%clk
0:01:28.9]} 33... Qg5 {[%clk 0:01:12.7]} 34. Rg2 {[%clk 0:01:22.1]} 34... Qg4
{[%clk 0:01:10.7]} 35. Qe2 {[%clk 0:01:19.4]} 35... Qe4 {[%clk 0:01:10.3]} 36.
Qc4+ {[%clk 0:01:19]} 36... Kh8 {[%clk 0:01:08.8]} 37. Qxa4 {[%clk 0:01:15.1]}
37... Rxe3 {[%clk 0:01:07]} 38. Bxe3 {[%clk 0:01:10.9]} 38... Qxe3+ {[%clk
0:01:06.1]} 39. Rff2 {[%clk 0:01:11.5]} 39... Qc1+ {[%clk 0:01:02.9]} 40. Kh2
{[%clk 0:01:11.6]} 40... Qh6+ {[%clk 0:01:02.3]} 41. Kg1 {[%clk 0:01:07.6]}
41... Qc1+ {[%clk 0:01:01.8]} 42. Rf1 {[%clk 0:01:08.2]} 42... Qe3+ {[%clk
0:01:01.7]} 43. Kh1 {[%clk 0:01:07.5]} 43... h6 {[%clk 0:00:51.6]} 44. Qc2
{[%clk 0:01:06]} 44... Qg5 {[%clk 0:00:50.2]} 45. Qf5 {[%clk 0:01:03.7]} 45...
Rb5 {[%clk 0:00:36.5]} 46. Qxg5 {[%clk 0:01:00]} 46... Rxg5 {[%clk 0:00:36.9]}
47. a4 {[%clk 0:00:59.9]} 47... Rd5 {[%clk 0:00:36.3]} 48. Ra1 {[%clk
0:00:57.3]} 48... Ne7 {[%clk 0:00:36]} 49. Rc2 {[%clk 0:00:54.7]} 49... Nf5
{[%clk 0:00:33]} 50. Rxc7 {[%clk 0:00:52.8]} 50... Nxg3+ {[%clk 0:00:29.6]} 51.
Kg2 {[%clk 0:00:53]} 51... Ne4 {[%clk 0:00:28.9]} 52. a5 {[%clk 0:00:53.5]}
52... Rf5 {[%clk 0:00:24.8]} 53. a6 {[%clk 0:00:52.3]} 53... Rf2+ {[%clk
0:00:24.7]} 54. Kg1 {[%clk 0:00:52.5]} 1-0